bitfinex-derivatives/quotes_BTCF0:USTF0_20210708
["timestamp","ask_amount","ask_price","bid_price","bid_amount"]
[1625740005279,7.16778,32620.0,32619.0,5.52842648]
[1625740006181,7.16778,32620.0,32619.0,1.71102648]
[1625740006483,8.07060308,32620.0,32617.0,1.57673976]
[1625740006635,0.54169075,32618.0,32615.0,1.5783478]
[1625740006858,0.63229882,32617.0,32615.0,1.5783478]
[1625740007008,0.63229882,32617.0,32616.0,0.00361778]
[1625740007162,0.09043155,32617.0,32616.0,1.5822039]
[1625740007308,0.27117657,32617.0,32616.0,1.5822039]
[1625740007760,0.9031446,32617.0,32616.0,0.00361778]
[1625740007909,0.54203037,32617.0,32616.0,0.00361778]
[1625740008660,0.90314498,32617.0,32616.0,0.00361778]
[1625740009337,0.54185103,32617.0,32616.0,0.00361778]
[1625740010163,0.54185103,32617.0,32615.0,0.00361788]
[1625740010385,0.54185103,32617.0,32615.0,1.58559726]
[1625740010536,0.63241577,32616.0,32615.0,1.58559726]
[1625740010686,0.63241577,32616.0,32615.0,1.58197938]
[1625740010914,0.27116428,32616.0,32615.0,1.58197938]
[1625740011061,0.27116428,32616.0,32615.0,1.58559724]
[1625740011213,0.63241236,32616.0,32615.0,1.58559724]
[1625740011587,0.27116428,32616.0,32615.0,1.58559724]
[1625740012491,0.54194743,32616.0,32615.0,0.00361786]
[1625740012867,0.54194743,32616.0,32612.0,0.00361789]
[1625740013015,1.08370478,32616.0,32612.0,0.00361789]
[1625740013257,0.27116718,32615.0,32612.0,0.00361789]
[1625740013464,0.09044924,32615.0,32612.0,0.00361789]
[1625740013765,0.27115228,32615.0,32612.0,0.00361789]
[1625740014148,0.09044924,32615.0,32611.0,0.00361791]
[1625740014368,0.63237601,32616.0,32611.0,0.00361791]
[1625740014516,0.63237601,32616.0,32611.0,0.01266255]
[1625740014669,0.63237601,32616.0,32615.0,1.59146821]
[1625740014816,0.27114459,32616.0,32615.0,1.59146821]
[1625740014967,0.27114459,32616.0,32615.0,1.59508603]
[1625740015417,0.90303353,32616.0,32615.0,0.00361782]
[1625740015569,0.54194709,32616.0,32615.0,1.5956476]
[1625740015868,0.63238462,32616.0,32615.0,1.5956476]
[1625740016016,0.2711351,32616.0,32615.0,1.5956476]
[1625740017221,0.63234455,32616.0,32615.0,1.5956476]
[1625740017369,0.63234455,32616.0,32615.0,0.00361782]
[1625740017972,1.26402153,32616.0,32615.0,0.00361782]
[1625740018423,1.26402153,32616.0,32614.0,0.00361805]
[1625740018723,0.90298149,32615.0,32614.0,0.00361805]
[1625740019949,0.54192582,32615.0,32614.0,0.00361805]
[1625740020150,0.90296013,32615.0,32614.0,0.00361805]
[1625740021427,1.26400017,32615.0,32614.0,0.00361805]
[1625740022027,1.26400017,32615.0,32612.0,0.00361822]
[1625740022178,0.0919,32614.0,32611.0,1.58845179]
[1625740022331,1.26421069,32613.0,32611.0,1.23915179]
[1625740022478,1.51103069,32613.0,32612.0,0.00361837]
[1625740023229,1.51103069,32613.0,32610.0,0.00361851]
[1625740023529,1.26403623,32611.0,32603.0,1.77100558]
[1625740023830,0.09044241,32607.0,32604.0,0.00361883]
[1625740023981,0.09044349,32606.0,32604.0,0.00361883]
[1625740024131,0.32790349,32606.0,32604.0,0.00361883]
[1625740024281,0.32790349,32606.0,32599.0,1.27593872]
[1625740024430,0.27096228,32604.0,32592.0,2.12890396]
[1625740024579,0.27096228,32604.0,32600.0,0.00361944]
[1625740024761,0.09038358,32603.0,32600.0,0.00361944]
[1625740024887,0.09038358,32603.0,32594.0,0.01266821]
[1625740025029,0.09038358,32603.0,32595.0,0.00905137]
[1625740025181,0.2709716,32603.0,32595.0,0.00905137]
[1625740025481,0.2709716,32603.0,32596.0,0.00361952]
[1625740025631,0.2709716,32603.0,32597.0,0.00905143]
[1625740025931,0.2709716,32603.0,32598.0,0.00361956]
[1625740026232,0.2709716,32603.0,32594.0,0.01266867]
[1625740026383,0.09038358,32603.0,32594.0,0.01266867]
[1625740026534,0.27072212,32604.0,32595.0,0.00905148]
[1625740026685,0.27072212,32604.0,32594.0,0.0090515]
[1625740026832,0.27072212,32604.0,32595.0,0.01266859]
[1625740026983,0.27072212,32604.0,32596.0,0.00905145]
[1625740027282,0.63138393,32604.0,32597.0,0.00361962]
[1625740027589,0.09029604,32603.0,32597.0,0.00361962]
[1625740027892,0.09029604,32603.0,32593.0,0.00361967]
[1625740028038,0.09029604,32603.0,32594.0,0.00905176]
[1625740028185,0.27070904,32603.0,32598.0,0.00361967]
[1625740028343,0.27070904,32603.0,32595.0,0.00361964]
[1625740028484,0.09029604,32603.0,32595.0,0.00361964]
[1625740028669,0.63117255,32604.0,32593.0,0.0036196]
[1625740028938,0.09023051,32604.0,32594.0,0.00905172]
[1625740029106,0.630885,32605.0,32594.0,0.00905172]
[1625740029392,0.27050546,32604.0,32595.0,0.00361957]
[1625740029762,0.09022852,32604.0,32595.0,0.00361957]
[1625740030065,0.63085469,32605.0,32593.0,0.00361953]
[1625740030213,0.96067738,32606.0,32596.0,0.0036195]
[1625740030514,0.09017672,32605.0,32593.0,0.00361952]
[1625740030665,0.27035043,32605.0,32594.0,0.00905154]
[1625740030967,0.63051758,32605.0,32594.0,0.00905154]
[1625740031117,0.63051758,32605.0,32595.0,0.00361955]
[1625740031269,0.63051758,32605.0,32596.0,0.0925]
[1625740031569,0.63051758,32605.0,32597.0,0.0036199]
[1625740032246,0.09017672,32605.0,32597.0,0.0036199]
[1625740032699,0.27027948,32605.0,32597.0,0.0036199]
[1625740032997,0.09017672,32605.0,32597.0,0.0036199]
[1625740033597,0.96041499,32606.0,32597.0,0.0036199]
[1625740034573,0.96041499,32606.0,32592.0,0.00362001]
[1625740034724,0.09009357,32605.0,32598.0,0.00362006]
[1625740035025,0.62993757,32605.0,32596.0,0.00362008]
[1625740035477,0.27010151,32605.0,32596.0,0.00362008]
[1625740035849,0.09009357,32605.0,32596.0,0.00362008]
[1625740036300,0.96000424,32606.0,32597.0,0.093]
[1625740036451,0.72254424,32606.0,32597.0,0.093]
[1625740036601,0.18275326,32606.0,32598.0,0.00361996]
[1625740036826,0.18275326,32606.0,32599.0,0.0913]
[1625740036974,0.18275326,32606.0,32598.0,0.00361996]
[1625740037125,0.18275326,32606.0,32600.0,0.00361987]
[1625740037276,0.0927,32606.0,32596.0,1.59221663]
[1625740037428,0.62964926,32607.0,32597.0,0.15141986]
[1625740037726,0.09005167,32607.0,32598.0,0.00361983]
[1625740038025,0.26996825,32607.0,32598.0,0.00361983]
[1625740038176,0.09005167,32607.0,32598.0,0.00361983]
[1625740038476,0.0919,32606.0,32598.0,0.00361983]
[1625740040803,0.26990292,32608.0,32598.0,0.00361983]
[1625740042226,0.09002633,32608.0,32598.0,0.00361983]
[1625740042527,0.26986874,32608.0,32598.0,0.00361983]
[1625740042903,0.09002633,32608.0,32598.0,0.00361983]
[1625740043806,0.26984997,32608.0,32598.0,0.00361983]
[1625740044405,0.26984997,32608.0,32597.0,0.00361968]
[1625740045155,0.26984997,32608.0,32597.0,0.09611968]
[1625740045531,0.26984997,32608.0,32598.0,0.00361968]
[1625740045681,0.26984997,32608.0,32599.0,0.0906]
[1625740045834,0.26979853,32610.0,32599.0,0.1476]
[1625740045982,0.26979853,32610.0,32600.0,0.00361938]
[1625740046132,0.62918372,32612.0,32600.0,1.59295794]
[1625740046282,0.62918372,32612.0,32601.0,0.057]
[1625740046432,0.62917397,32613.0,32601.0,1.64575528]
[1625740046583,0.08998463,32613.0,32602.0,0.00361915]
[1625740046807,0.62915864,32614.0,32602.0,0.00361915]
[1625740047107,0.62912119,32615.0,32603.0,1.59024256]
[1625740047257,0.62912119,32615.0,32604.0,0.057]
[1625740047558,0.26975165,32615.0,32604.0,0.057]
[1625740047707,0.26975165,32615.0,32605.0,0.0036189]
[1625740047856,0.26975165,32615.0,32605.0,0.2242189]
[1625740048007,0.26975165,32615.0,32606.0,0.057]
[1625740048157,0.26975165,32615.0,32606.0,0.0606189]
[1625740048306,0.08997708,32615.0,32606.0,0.0606189]
[1625740048459,0.2697711,32615.0,32606.0,0.0606189]
[1625740048608,0.2697711,32615.0,32607.0,0.0036189]
[1625740048924,0.89837332,32616.0,32607.0,0.0036189]
[1625740048925,0.62918445,32616.0,32607.0,0.0036189]
[1625740049207,0.08998508,32616.0,32607.0,0.0036189]
[1625740049357,0.6291756,32617.0,32607.0,0.0036189]
[1625740050108,0.26978098,32617.0,32607.0,0.0036189]
[1625740050710,0.62923293,32616.0,32607.0,0.0036189]
[1625740051012,0.26979956,32616.0,32607.0,0.0036189]
[1625740051311,0.26984044,32615.0,32607.0,0.0036189]
[1625740051685,0.89862972,32616.0,32607.0,0.0036189]
[1625740051686,0.0906,32618.0,32607.0,0.0036189]
[1625740051910,0.26985738,32615.0,32607.0,0.0036189]
[1625740052211,0.62936406,32616.0,32607.0,0.0036189]
[1625740052661,0.09001146,32615.0,32607.0,0.0036189]
[1625740053113,0.26985452,32615.0,32607.0,0.0036189]
[1625740053412,0.09001146,32615.0,32607.0,0.0036189]
[1625740053563,0.26989517,32615.0,32607.0,0.0036189]
[1625740053786,0.62948223,32615.0,32607.0,0.0036189]
[1625740054085,0.26989517,32615.0,32607.0,0.0036189]
[1625740054685,0.09001146,32615.0,32607.0,0.0036189]
[1625740054838,0.62949999,32616.0,32607.0,0.0036189]
[1625740055063,0.26991239,32615.0,32607.0,0.0036189]
[1625740056788,0.62958889,32615.0,32607.0,0.0036189]
[1625740057088,0.26991239,32615.0,32607.0,0.0036189]
[1625740057989,0.62969049,32615.0,32607.0,0.0036189]
[1625740059639,0.09011209,32614.0,32607.0,0.0036189]
[1625740059790,0.27015684,32614.0,32607.0,0.0036189]
[1625740060690,0.09011209,32614.0,32607.0,0.0036189]
[1625740061369,0.27021778,32614.0,32607.0,0.0036189]
[1625740062193,0.09011209,32614.0,32607.0,0.0036189]
[1625740063470,0.27027315,32614.0,32607.0,0.0036189]
[1625740064295,0.09011209,32614.0,32607.0,0.0036189]
[1625740064897,0.63010493,32615.0,32607.0,0.0036189]
[1625740065348,0.09019754,32614.0,32607.0,0.0036189]
[1625740065799,0.27041444,32614.0,32607.0,0.0036189]
[1625740066174,0.09019754,32614.0,32604.0,0.00361842]
[1625740066323,0.27041345,32614.0,32604.0,0.00361842]
[1625740066473,0.27041345,32614.0,32608.0,0.00361842]
[1625740066626,0.09019754,32614.0,32608.0,0.00361842]
[1625740066775,0.09019754,32614.0,32605.0,0.00361842]
[1625740066924,0.09019754,32614.0,32609.0,0.00361842]
[1625740067075,0.63019031,32615.0,32609.0,0.00361842]
[1625740067226,0.27041221,32615.0,32608.0,0.057]
[1625740067451,0.27041221,32615.0,32609.0,0.00361832]
[1625740069103,0.09019626,32615.0,32609.0,0.00361832]
[1625740069402,0.27043904,32615.0,32609.0,0.00361832]
[1625740069853,0.09021885,32614.0,32609.0,0.00361832]
[1625740070003,0.27047753,32614.0,32609.0,0.00361832]
[1625740070830,0.09021885,32614.0,32609.0,0.00361832]
[1625740071057,0.63081376,32615.0,32609.0,0.00361832]
[1625740071655,0.09023113,32614.0,32609.0,0.00361832]
[1625740071955,0.63082526,32615.0,32609.0,0.00361832]
[1625740072256,0.0902301,32614.0,32609.0,0.00361832]
[1625740072408,0.27050978,32614.0,32609.0,0.00361832]
[1625740072633,0.63088937,32614.0,32608.0,0.00361834]
[1625740073084,0.27050978,32614.0,32608.0,0.00361834]
[1625740073310,0.0902301,32614.0,32608.0,0.00361834]
[1625740073536,0.27052886,32614.0,32608.0,0.00361834]
[1625740073835,0.59530886,32614.0,32608.0,0.00361834]
[1625740074138,0.95573277,32614.0,32608.0,0.00361834]
[1625740074289,0.63098192,32613.0,32608.0,0.00361834]
[1625740074739,0.09024716,32611.0,32603.0,0.06966514]
[1625740075039,0.09024716,32611.0,32604.0,0.01266531]
[1625740075489,0.63110772,32611.0,32604.0,0.01266531]
[1625740075640,0.09026507,32610.0,32604.0,0.00361866]
[1625740075791,0.09026507,32610.0,32605.0,0.01266579]
[1625740076089,0.09026507,32610.0,32604.0,0.01266583]
[1625740077739,0.09026507,32610.0,32602.0,0.01266554]
[1625740078041,0.09026507,32610.0,32605.0,0.01266557]
[1625740078190,0.27065034,32610.0,32603.0,0.01266557]
[1625740078490,0.27065034,32610.0,32602.0,0.01266554]
[1625740078640,0.27065034,32610.0,32603.0,0.00905032]
[1625740078641,0.09026507,32610.0,32603.0,0.00905032]
[1625740078791,0.09026507,32610.0,32603.0,0.33850032]
[1625740078941,0.09028022,32611.0,32604.0,0.057]
[1625740079090,0.09028022,32611.0,32604.0,0.07871544]
[1625740079243,0.09028022,32611.0,32604.0,0.06966524]
[1625740079390,0.63124303,32612.0,32605.0,0.01266493]
[1625740079543,0.27066273,32612.0,32605.0,0.01266493]
[1625740080292,0.27066897,32613.0,32606.0,0.00904957]
[1625740080742,0.63125494,32614.0,32606.0,0.00904957]
[1625740080891,0.63125494,32614.0,32607.0,0.01266356]
[1625740081043,0.09028117,32614.0,32607.0,0.01266356]
[1625740081344,0.09027694,32615.0,32608.0,0.00904887]
[1625740081568,0.09027694,32615.0,32609.0,0.01266275]
[1625740081719,0.27064886,32616.0,32609.0,0.01266275]
[1625740082019,0.09027517,32616.0,32609.0,0.01266275]
[1625740082172,0.09027517,32616.0,32608.0,0.057]
[1625740082319,0.63120396,32617.0,32609.0,0.00904865]
[1625740082468,0.63120396,32617.0,32610.0,0.01266255]
[1625740082618,0.63120396,32617.0,32610.0,0.32679255]
[1625740082768,0.63120396,32617.0,32611.0,0.057]
[1625740082918,0.63120396,32617.0,32611.0,0.06966258]
[1625740083068,0.27063636,32616.0,32611.0,0.06966258]
[1625740083218,0.27063636,32616.0,32612.0,0.0126626]
[1625740083671,0.09027218,32616.0,32612.0,0.0126626]
[1625740083820,0.63119551,32617.0,32612.0,0.0126626]
[1625740084046,0.09027204,32617.0,32612.0,0.0126626]
[1625740084572,0.2705933,32617.0,32612.0,0.00361789]
[1625740084890,0.0911,32618.0,32613.0,0.10336162]
[1625740085023,0.0911,32618.0,32614.0,0.057]
[1625740085173,1.35391249,32621.0,32616.0,1.58464447]
[1625740085174,0.36315593,32621.0,32616.0,1.58464447]
[1625740085322,0.63095404,32623.0,32617.0,1.64077969]
[1625740085471,0.63095404,32623.0,32617.0,1.99134703]
[1625740085621,0.09023922,32623.0,32618.0,1.58369098]
[1625740085772,0.63095578,32624.0,32619.0,0.057]
[1625740086074,0.63095578,32624.0,32619.0,0.06061762]
[1625740086372,0.63095578,32624.0,32620.0,0.00361758]
[1625740086674,0.09023902,32624.0,32620.0,0.00361758]
[1625740087123,0.6306525,32625.0,32620.0,0.00361758]
[1625740087723,0.09019659,32624.0,32620.0,0.00361758]
[1625740088174,0.27036738,32624.0,32620.0,0.00361758]
[1625740088474,0.09019659,32624.0,32620.0,0.00361758]
[1625740088774,0.63058616,32625.0,32620.0,0.00361758]
[1625740089600,0.27034157,32625.0,32620.0,0.00361758]
[1625740090050,0.72012313,32627.0,32620.0,1.58735482]
[1625740090051,0.27031923,32627.0,32620.0,1.58735482]
[1625740090201,0.27031923,32627.0,32621.0,0.057]
[1625740090352,0.27031923,32627.0,32621.0,0.0606174]
[1625740090502,0.63028329,32627.0,32621.0,0.0606174]
[1625740090653,0.63028329,32627.0,32622.0,0.00361745]
[1625740090802,0.09012676,32626.0,32622.0,0.00361745]
[1625740091104,0.63018069,32626.0,32622.0,0.00361745]
[1625740091555,0.09012944,32625.0,32622.0,0.00361745]
[1625740091854,0.63019745,32625.0,32622.0,0.00361745]
[1625740092155,0.2702072,32626.0,32622.0,0.00361745]
[1625740092457,0.09014,32625.0,32622.0,0.00361745]
[1625740092605,0.63004856,32627.0,32622.0,0.00361745]
[1625740092905,0.27014928,32627.0,32622.0,0.00361745]
[1625740093956,0.09010971,32627.0,32622.0,0.00361745]
[1625740094106,0.63003055,32628.0,32622.0,0.00361745]
[1625740094408,0.09008231,32626.0,32622.0,0.00361745]
[1625740094707,0.629968,32626.0,32622.0,0.00361745]
[1625740094856,0.090103,32625.0,32622.0,0.00361745]
[1625740095307,0.62998776,32626.0,32622.0,0.00361745]
[1625740095458,0.62998776,32626.0,32619.0,0.00361745]
[1625740095759,0.63001292,32625.0,32619.0,0.00361745]
[1625740096068,0.27014267,32624.0,32619.0,0.00361745]
[1625740096209,0.27020638,32623.0,32619.0,0.00361745]
[1625740096509,0.63018541,32623.0,32619.0,0.00361745]
[1625740096811,0.0923,32629.0,32619.0,0.00361745]
[1625740096959,0.27020813,32623.0,32619.0,0.00361745]
[1625740097186,0.09012934,32623.0,32619.0,0.00361745]
[1625740097486,0.63018294,32623.0,32619.0,0.00361745]
[1625740097638,0.09013,32622.0,32619.0,0.00361745]
[1625740098312,0.27024988,32622.0,32619.0,0.00361745]
[1625740099512,0.89997552,32623.0,32619.0,0.00361745]
[1625740099513,0.63024065,32623.0,32619.0,0.00361745]
[1625740099663,0.63024065,32623.0,32619.0,0.34705745]
[1625740099813,0.63030683,32624.0,32620.0,0.057]
[1625740099963,0.09014665,32624.0,32620.0,0.057]
[1625740100112,0.09014665,32624.0,32620.0,0.0606175]
[1625740100267,0.09014665,32624.0,32621.0,0.00361752]
[1625740100489,0.63034609,32624.0,32621.0,0.00361752]
[1625740101014,0.27027311,32624.0,32621.0,0.00361752]
[1625740101164,0.09014665,32624.0,32621.0,0.00361752]
[1625740101390,0.63034984,32624.0,32621.0,0.00361752]
[1625740101691,0.27027436,32624.0,32621.0,0.00361752]
[1625740102064,0.09014665,32624.0,32621.0,0.00361752]
[1625740103041,0.63034935,32625.0,32621.0,0.00361752]
[1625740103493,0.27034637,32624.0,32621.0,0.00361752]
[1625740104093,0.63051182,32624.0,32621.0,0.00361752]
[1625740104617,0.27034637,32624.0,32621.0,0.00361752]
[1625740105372,0.09017545,32624.0,32621.0,0.00361752]
[1625740105524,0.27041232,32624.0,32621.0,0.00361752]
[1625740105745,0.09021004,32623.0,32621.0,0.00361752]
[1625740106045,0.63074589,32624.0,32621.0,0.00361752]
[1625740106349,0.63074589,32624.0,32620.0,0.00361761]
[1625740106650,0.63074589,32624.0,32622.0,0.00361761]
[1625740106952,0.09020662,32623.0,32621.0,0.00361761]
[1625740107098,0.09020662,32623.0,32619.0,0.057]
[1625740107398,0.09020662,32623.0,32620.0,0.00361761]
[1625740107849,0.63074956,32624.0,32620.0,0.00361761]
[1625740109955,0.27044959,32624.0,32620.0,0.00361761]
[1625740110402,0.27044397,32625.0,32620.0,0.29332761]
[1625740110552,0.27044397,32625.0,32621.0,0.057]
[1625740110856,0.27044397,32625.0,32622.0,0.00361738]
[1625740111002,0.09020801,32625.0,32622.0,0.00361738]
[1625740111379,0.63073219,32626.0,32622.0,0.00361738]
[1625740112505,0.09020363,32625.0,32622.0,0.00361738]
[1625740112807,0.6307104,32625.0,32622.0,0.00361738]
[1625740112957,0.09020787,32623.0,32622.0,0.00361738]
[1625740113483,0.63076127,32623.0,32622.0,0.00361738]
[1625740113931,0.27045236,32623.0,32622.0,0.00361738]
[1625740114456,0.27043453,32625.0,32622.0,0.00361738]
[1625740114908,0.63071421,32625.0,32622.0,0.00361738]
[1625740115130,0.27043453,32625.0,32622.0,0.00361738]
[1625740115880,0.09020486,32625.0,32622.0,0.00361738]
[1625740116557,0.27043882,32624.0,32622.0,0.00361738]
[1625740116859,0.63072942,32624.0,32622.0,0.00361738]
[1625740118285,0.0902174,32623.0,32622.0,0.00361738]
[1625740118736,0.0902161,32624.0,32622.0,0.00361738]
[1625740118959,0.27046642,32625.0,32622.0,0.00361738]
[1625740119259,0.09022021,32624.0,32622.0,0.00361738]
[1625740119708,0.27048087,32624.0,32622.0,0.00361738]
[1625740120009,0.09022021,32624.0,32622.0,0.00361738]
[1625740120159,0.09022021,32624.0,32620.0,0.00361742]
[1625740120308,0.09022021,32624.0,32623.0,0.00361742]
[1625740120609,0.09022021,32624.0,32620.0,0.00361738]
[1625740120760,0.6308202,32625.0,32620.0,0.00361738]
[1625740121059,0.27047958,32625.0,32620.0,0.00361738]
[1625740121209,0.63085176,32625.0,32620.0,0.00361738]
[1625740122185,0.09022931,32624.0,32619.0,1.64048771]
[1625740122710,0.63086175,32625.0,32620.0,0.00904329]
[1625740122860,0.27048957,32625.0,32620.0,1.59398778]
[1625740123011,0.27048957,32625.0,32621.0,0.057]
[1625740123161,0.09023081,32625.0,32621.0,0.057]
[1625740123312,0.09023081,32625.0,32622.0,0.00361716]
[1625740123537,0.63088986,32626.0,32622.0,0.00361716]
[1625740123836,0.27051363,32626.0,32622.0,0.00361716]
[1625740124438,0.0902354,32626.0,32622.0,0.00361716]
[1625740125341,0.27053573,32626.0,32622.0,0.00361716]
[1625740126167,0.63093304,32627.0,32622.0,0.00361716]
[1625740126619,0.27053181,32627.0,32622.0,0.00361716]
[1625740126841,0.27053181,32627.0,32622.0,1.58795381]
[1625740126994,0.27053181,32627.0,32623.0,0.057]
[1625740127142,0.27053181,32627.0,32623.0,0.36058]
[1625740127293,0.0902435,32626.0,32623.0,0.36419697]
[1625740127442,0.27055037,32626.0,32624.0,0.00361704]
[1625740127595,0.63098456,32626.0,32624.0,0.00361704]
[1625740127744,0.0902445,32625.0,32624.0,0.00361704]
[1625740128194,0.27056093,32625.0,32624.0,0.00361704]
[1625740128495,0.63101577,32625.0,32624.0,0.00361704]
[1625740128644,0.54077127,32625.0,32624.0,0.00361704]
[1625740130148,1.08142153,32625.0,32624.0,0.00361704]
[1625740130446,1.08142153,32625.0,32620.0,0.00361728]
[1625740130597,1.26152376,32625.0,32620.0,0.00361728]
[1625740130822,0.27062166,32623.0,32620.0,0.00361728]
[1625740130971,0.27062166,32623.0,32619.0,0.00361728]
[1625740131121,0.09026728,32623.0,32619.0,1.59073041]
[1625740131272,0.27064852,32623.0,32619.0,1.59073041]
[1625740131497,0.27064852,32623.0,32620.0,0.0606173]
[1625740131871,0.27064852,32623.0,32621.0,0.0036173]
[1625740132697,0.63120523,32624.0,32621.0,0.0036173]
[1625740133297,0.27067665,32624.0,32621.0,0.0036173]
[1625740133823,0.09028562,32624.0,32621.0,0.0036173]
[1625740134353,0.63137743,32625.0,32621.0,1.59028951]
[1625740134499,0.27072487,32624.0,32622.0,0.057]
[1625740134725,0.0903017,32624.0,32622.0,0.057]
[1625740134873,0.0903017,32624.0,32623.0,0.00361715]
[1625740135176,0.6316419,32624.0,32623.0,0.00361715]
[1625740135625,0.0903017,32624.0,32623.0,0.00361715]
[1625740136902,0.27081343,32624.0,32623.0,0.00361715]
[1625740137053,0.0903017,32624.0,32623.0,0.00361715]
[1625740137351,0.54174979,32624.0,32623.0,1.59979825]
[1625740137500,0.54174979,32624.0,32623.0,1.65679825]
[1625740139457,1.26474646,32624.0,32623.0,1.65679825]
[1625740139603,0.90348878,32624.0,32623.0,1.65679825]
[1625740140055,0.54222816,32624.0,32623.0,1.65679825]
[1625740140536,0.54203817,32624.0,32623.0,1.65679825]
[1625740140804,0.90345646,32624.0,32623.0,1.65679825]
[1625740141411,1.26469279,32624.0,32623.0,1.65679825]
[1625740141630,0.90345232,32624.0,32623.0,1.65679825]
[1625740143131,0.54203817,32624.0,32623.0,1.65679825]
[1625740143581,0.90345878,32624.0,32623.0,1.65679825]
[1625740143965,0.54203817,32624.0,32623.0,1.65679825]
[1625740144256,1.26497845,32624.0,32623.0,1.65679825]
[1625740152068,2.34937077,32624.0,32623.0,1.65679825]
[1625740152369,1.26497845,32624.0,32623.0,1.65679825]
[1625740156873,2.34949932,32624.0,32623.0,1.65679825]
[1625740157323,1.26497845,32624.0,32623.0,1.65679825]
[1625740157849,2.34949976,32624.0,32623.0,1.65679825]
[1625740158149,1.26497845,32624.0,32623.0,1.65679825]
[1625740158300,2.34967355,32624.0,32623.0,1.65679825]
[1625740161375,2.34967355,32624.0,32623.0,1.59979825]
[1625740164827,2.34967355,32624.0,32623.0,1.5961811]
[1625740165053,2.34967355,32624.0,32623.0,1.59979868]
[1625740168531,5.06211704,32624.0,32623.0,0.00361758]
[1625740168806,5.06211704,32624.0,32622.0,0.0036179]
[1625740168956,5.06388731,32623.0,32622.0,0.0036179]
[1625740169106,5.06388731,32623.0,32619.0,1.60216368]
[1625740169261,5.06388731,32623.0,32618.0,1.60174596]
[1625740169415,1.62756828,32625.0,32622.0,0.00361802]
[1625740169557,1.62756828,32625.0,32619.0,0.00361812]
[1625740169717,5.06203102,32623.0,32619.0,0.00361812]
[1625740169858,2.71189139,32620.0,32619.0,0.00361812]
[1625740170026,5.1535888,32620.0,32619.0,0.00361812]
[1625740170180,5.1535888,32620.0,32617.0,0.00361848]
[1625740170467,5.06263521,32618.0,32613.0,1.6045513]
[1625740170608,2.35063749,32614.0,32613.0,1.6045513]
[1625740171058,2.35063749,32614.0,32613.0,0.00361852]
[1625740171508,2.35063749,32614.0,32612.0,0.00361863]
[1625740171807,1.08484008,32614.0,32613.0,0.00361863]
[1625740172109,1.26452196,32614.0,32613.0,0.00361863]
[1625740173459,0.90311767,32614.0,32612.0,1.60730806]
[1625740173759,0.27108981,32613.0,32612.0,1.6036895]
[1625740173922,0.63224255,32613.0,32612.0,1.6036895]
[1625740174210,0.63224255,32613.0,32612.0,1.60730804]
[1625740174360,0.54181912,32613.0,32612.0,0.00361854]
[1625740174819,1.26372325,32613.0,32612.0,0.00361854]
[1625740175110,0.63191176,32613.0,32612.0,0.00361854]
[1625740175787,0.09037619,32613.0,32612.0,0.00361854]
[1625740176088,0.5415363,32613.0,32612.0,0.00361854]
[1625740176388,0.5415363,32613.0,32611.0,0.00361865]
[1625740176688,0.0903711,32612.0,32611.0,0.00361865]
[1625740176987,0.27091328,32613.0,32611.0,0.00361865]
[1625740177438,0.63166723,32614.0,32611.0,1.60605578]
[1625740177739,0.63166723,32614.0,32612.0,0.00361858]
[1625740178051,0.27084399,32614.0,32612.0,0.00361858]
[1625740178348,0.27082492,32613.0,32612.0,0.00361858]
[1625740178792,0.09033508,32613.0,32611.0,0.00361863]
[1625740179767,0.27078151,32613.0,32611.0,0.00361863]
[1625740180066,0.63155899,32614.0,32611.0,0.00361863]
[1625740180967,0.27075961,32614.0,32611.0,0.00361863]
[1625740181117,0.63137075,32614.0,32611.0,0.00361863]
[1625740181569,0.09028876,32613.0,32611.0,0.00361863]
[1625740181867,0.63134619,32614.0,32611.0,0.00361863]
[1625740182543,0.09028308,32613.0,32611.0,0.00361863]
[1625740183293,0.63132143,32614.0,32611.0,0.00361863]
[1625740183445,0.09026385,32613.0,32611.0,0.00361863]
[1625740183745,0.27071005,32614.0,32611.0,0.00361863]
[1625740184044,0.27071005,32614.0,32610.0,0.9715]
[1625740184195,0.27071005,32614.0,32612.0,0.00361866]
[1625740184344,0.27071005,32614.0,32611.0,0.00361864]
[1625740184797,0.09026373,32614.0,32611.0,0.00361864]
[1625740185246,0.27058008,32614.0,32611.0,0.00361864]
[1625740185396,0.27058008,32614.0,32610.0,0.9715]
[1625740185547,0.6310793,32615.0,32612.0,0.00361859]
[1625740186076,0.6310793,32615.0,32613.0,0.0036186]
[1625740186376,0.09024828,32614.0,32613.0,0.0036186]
[1625740186678,0.63102062,32614.0,32613.0,0.0036186]
[1625740186832,0.54077234,32614.0,32613.0,0.0036186]
[1625740187128,0.90096604,32614.0,32613.0,0.0036186]
[1625740187354,0.63097773,32614.0,32613.0,0.0036186]
[1625740187804,0.72277773,32614.0,32613.0,0.0036186]
[1625740188180,0.63231317,32614.0,32613.0,0.0036186]
[1625740188709,0.63231317,32614.0,32612.0,0.00361859]
[1625740188856,0.54051317,32614.0,32612.0,0.00361859]
[1625740189007,0.54059017,32614.0,32613.0,0.00361883]
[1625740189307,0.09021786,32614.0,32613.0,0.00361883]
[1625740189759,0.27047194,32614.0,32613.0,0.00361883]
[1625740189908,0.72170741,32614.0,32613.0,0.00361883]
[1625740190133,0.99164841,32614.0,32613.0,0.00361883]
[1625740190281,0.90074841,32614.0,32613.0,0.00361883]
[1625740190433,1.26086019,32614.0,32613.0,0.00361883]
[1625740190582,0.90072663,32614.0,32613.0,0.00361883]
[1625740190931,0.09021083,32614.0,32613.0,0.00361883]
[1625740191185,0.09020198,32615.0,32613.0,0.00361883]
[1625740191782,0.63069106,32616.0,32613.0,0.00361883]
[1625740192082,0.27042326,32616.0,32613.0,0.00361883]
[1625740192234,0.09019934,32616.0,32613.0,0.00361883]
[1625740192533,0.27040486,32616.0,32613.0,0.00361883]
[1625740193735,0.63066059,32617.0,32613.0,0.00361883]
[1625740194035,0.27040062,32617.0,32613.0,0.00361883]
[1625740194561,0.09019355,32617.0,32613.0,0.00361883]
[1625740194863,0.27039012,32617.0,32613.0,0.00361883]
[1625740195237,0.63061705,32617.0,32613.0,0.00361883]
[1625740196739,0.27039012,32617.0,32613.0,0.00361883]
[1625740197117,0.09019355,32617.0,32613.0,0.00361883]
[1625740197419,0.09019496,32616.0,32613.0,0.00361883]
[1625740198091,0.27040485,32617.0,32613.0,0.00361883]
[1625740199144,0.27041582,32616.0,32613.0,0.00361883]
[1625740199595,0.63067338,32616.0,32613.0,0.00361883]
[1625740199892,0.09019862,32616.0,32613.0,0.00361883]
[1625740200942,0.63067665,32617.0,32613.0,0.00361883]
[1625740201167,0.0902018,32616.0,32613.0,0.00361883]
[1625740201771,0.63071799,32616.0,32613.0,0.00361883]
[1625740202370,0.2704414,32615.0,32613.0,0.00361883]
[1625740202668,0.63073394,32615.0,32613.0,0.00361883]
[1625740203270,0.09021231,32614.0,32613.0,0.00361883]
[1625740204019,0.54052679,32615.0,32613.0,0.00361883]
[1625740204169,0.63074018,32615.0,32613.0,0.00361883]
[1625740204620,0.27044764,32615.0,32613.0,0.00361883]
[1625740205220,0.27044764,32615.0,32611.0,0.00361853]